fUSD/lending_fUSD_20240616
["ID","MTS","AMOUNT","RATE_DAILY","PERIOD"]
[329670240,1718558249247,693.55844395,0.00026039,30]
[329670241,1718558322432,158.71096478,0.00017807,2]
[329670242,1718558327752,693.55844395,0.00026038,30]
[329670245,1718558408527,693.55844395,0.00026036,30]
[329670249,1718558460371,10714.32,0.00027,30]
[329670250,1718558486783,693.55844395,0.00026035,30]
[329670252,1718558573263,693.55844395,0.00026034,30]
[329670254,1718558645805,693.55844395,0.00026034,30]
[329670256,1718558728307,693.55844395,0.00026033,30]
[329670257,1718558759448,158.71096478,0.00017259,2]
[329670259,1718558810868,693.55844395,0.00026041,30]
[329670260,1718558885306,693.55844395,0.0002604,30]
[329670262,1718558963171,693.55844395,0.00026039,30]
[329670263,1718558967199,-300.0,0.00019725,2]
[329670264,1718558967241,-151.65,0.00023615,2]
[329670265,1718558967320,-152.3,0.0002362,2]
[329670266,1718558967413,-153.45,0.00023625,2]
[329670267,1718558967459,-1685.94,0.00023626,2]
[329670268,1718558967539,-150.3,0.00023626,2]
[329670269,1718558967579,-1003.122956,0.00023631,2]
[329670270,1718558967643,-158.943118,0.00023631,2]
[329670271,1718558967728,-875.562552,0.00023631,2]
[329670272,1718558967769,-180.999397,0.00023631,2]
[329670273,1718558967814,-161.469333,0.00023631,2]
[329670274,1718558967873,-171.719214,0.00023631,2]
[329670275,1718558967914,-176.826941,0.00023631,2]
[329670276,1718558967950,-999.99,0.00023631,2]
[329670277,1718558968001,-1729.4,0.00023631,2]
[329670278,1718558968055,-366.82,0.00023835,2]
[329670279,1718558968111,-1003.122956,0.00023926,2]
[329670280,1718558968172,-875.562552,0.00023926,2]
[329670281,1718558968227,-1003.122956,0.00024222,2]
[329670282,1718558968272,-875.562552,0.00024222,2]
[329670283,1718558968337,-152.76,0.00024379,2]
[329670284,1718558968371,-153.2,0.00024384,2]
[329670285,1718558968422,-663.89,0.00024384,2]
[329670286,1718558968461,-1003.122956,0.00024517,2]
[329670287,1718558968507,-875.562552,0.00024517,2]
[329670288,1718558968540,-1003.122956,0.00024812,2]
[329670289,1718558968581,-875.562552,0.00024812,2]
[329670290,1718558968639,-7432.2410971,0.00025,2]
[329670291,1718558968696,-1278.56167909,0.00025,2]
[329670292,1718558968755,-1001.86,0.000251,2]
[329670293,1718558968838,-250.0,0.00025318,2]
[329670294,1718558968906,-356.23,0.00025342,2]
[329670295,1718558968969,-150.0,0.00025555,2]
[329670296,1718558969006,-250.0,0.00025561,2]
[329670297,1718558969053,-7271.81,0.00025605,2]
[329670298,1718558969092,-800.0,0.0002562,2]
[329670299,1718558969134,-250.0,0.00025753,2]
[329670300,1718558969214,-344.78,0.0002576,2]
[329670301,1718558969254,-173.33,0.00025986,2]
[329670302,1718558969297,-1205.49676765,0.0002604,2]
[329670303,1718558969334,-711.32,0.00026042,2]
[329670304,1718558969374,-366.82,0.00026099,2]
[329670305,1718558969411,-150.0,0.00027397,2]
[329670306,1718558969442,-2000.0,0.000274,2]
[329670307,1718558969476,-3369.7452197,0.00027438,2]
[329670308,1718558969509,-1505.15335,0.0002749,2]
[329670309,1718558969566,-300.0,0.000275,2]
[329670310,1718558969603,-71854.5676,0.0002757,2]
[329670311,1718558969646,-152.0,0.00027643,3]
[329670312,1718558969686,-1208.7985,0.0002766,2]
[329670313,1718558969723,-415.24319941,0.0002766,2]
[329670314,1718558969769,-415.2431994,0.00027661,2]
[329670315,1718558969853,-3084.56859922,0.00027662,2]
[329670316,1718558969916,-173.25656806,0.00027662,2]
[329670317,1718558969950,-208.94860313,0.00027662,2]
[329670318,1718558970003,-163.62881776,0.00027662,2]
[329670319,1718558970068,-328.09084184,0.00027662,2]
[329670320,1718558970102,-1078.94764407,0.00027662,2]
[329670321,1718558970134,-415.2431994,0.00027662,2]
[329670322,1718558970169,-415.2431994,0.00027663,2]
[329670323,1718558970216,-163.62881773,0.00027664,2]
[329670324,1718558970258,-415.2431994,0.00027664,2]
[329670325,1718558970307,-163.62881773,0.00027665,2]
[329670326,1718558970342,-415.2431994,0.00027666,2]
[329670327,1718558970378,-415.2431994,0.00027667,2]
[329670328,1718558970422,-163.62881773,0.00027667,2]
[329670329,1718558970468,-415.2431994,0.00027668,2]
[329670330,1718558970516,-163.62881773,0.00027668,2]
[329670331,1718558970550,-415.2431994,0.00027669,2]
[329670332,1718558970584,-415.2431994,0.0002767,2]
[329670333,1718558970617,-163.62881773,0.0002767,2]
[329670334,1718558970648,-1996.3195,0.0002767,2]
[329670335,1718558970678,-426.0,0.0002769,2]
[329670336,1718558970729,-2000.0,0.000277,2]
[329670337,1718558970779,-291.0,0.000277,2]
[329670338,1718558970811,-150.0,0.000277,5]
[329670339,1718558970845,-160.0,0.000277,2]
[329670340,1718558970884,-150.0,0.000277,2]
[329670341,1718558970941,-42000.00000001,0.0002776,2]
[329670342,1718558970987,-1367.34505842,0.0002776,3]
[329670343,1718558971022,-4606.15391184,0.0002776,7]
[329670344,1718558971053,-177.47154001,0.0002776,2]
[329670345,1718558971170,314.34,0.000251,2]
[329670346,1718558975772,150.0,0.000277,5]
[329670347,1718558981871,358.09447486,0.0002776,30]
[329670348,1718558985712,1268.4211555,0.0002604,2]
[329670349,1718558987552,1278.56167909,0.0002776,2]
[329670350,1718558987837,226.81877563,0.000201,2]
[329670351,1718558990341,7432.2410971,0.0002776,2]
[329670352,1718559001664,226.81877563,0.0002082,2]
[329670353,1718559005527,1278.56167909,0.0002776,2]
[329670354,1718559006353,929.98587127,0.0002776,2]
[329670355,1718559010526,153.23,0.00027756,2]
[329670356,1718559021680,226.81877563,0.0002082,2]
[329670357,1718559027525,1278.56167909,0.0002776,2]
[329670358,1718559032033,175.12,0.00024384,2]
[329670376,1718559033656,-268.07010932,0.00027761,2]
[329670377,1718559033681,-294.08982411,0.00027761,8]
[329670378,1718559033754,-205.91017589,0.00027761,8]
[329670379,1718559033777,-77.96964509,0.00027761,8]
[329670380,1718559033966,-216.18235909,0.00027761,8]
[329670381,1718559033980,-510.21933912,0.00027761,2]
[329670382,1718559033991,-619.04088203,0.00027761,8]
[329670383,1718559034021,-300.0,0.00027761,2]
[329670384,1718559034031,-332.0,0.00027762,5]
[329670385,1718559034066,-2208.49775728,0.00027762,13]
[329670386,1718559034077,-203.21344504,0.00027762,2]
[329670387,1718559034088,-367.04686073,0.00027762,2]
[329670388,1718559034112,-12274.37660052,0.00027762,2]
[329670389,1718559034138,-756.27288357,0.00027762,2]
[329670390,1718559034269,-643.96984989,0.00027762,2]
[329670391,1718559034429,-495.94,0.00027762,2]
[329670393,1718559037701,226.81877563,0.0002082,2]
[329670403,1718559039118,-464.58898707,0.00027761,8]
[329670404,1718559039373,-35.41101293,0.00027761,8]
[329670405,1718559039408,-5670.34683708,0.00027762,2]
[329670406,1718559039425,-19407.0016554,0.00027762,2]
[329670407,1718559039457,-17848.54770864,0.00027762,2]
[329670408,1718559039476,-9999.99972179,0.00027762,2]
[329670409,1718559039913,-6556.54861683,0.00027762,2]
[329670410,1718559040036,-283.98589082,0.00027762,2]
[329670412,1718559040216,-2922.27126424,0.00027762,2]
[329670413,1718559040350,-3261.8106,0.00027762,2]
[329670414,1718559040659,-4912.95134531,0.00027762,2]
[329670415,1718559040680,-1642.6789177,0.00027762,2]
[329670416,1718559040717,-673.38953007,0.00027762,2]
[329670417,1718559040733,-383.65,0.00027762,2]
[329670418,1718559040756,-261.9,0.00027762,2]
[329670419,1718559040771,-849.33,0.00027762,2]
[329670420,1718559040815,-325.82,0.00027762,2]
[329670456,1718559043722,-300.0,0.00027762,5]
[329670459,1718559043738,-17631.91225216,0.00027762,2]
[329670464,1718559043756,-24458.8166724,0.00027762,2]
[329670491,1718559044421,-59948.28438693,0.00027762,2]
[329670492,1718559044435,-17739.44804755,0.00027762,2]
[329670494,1718559044449,-17555.23722484,0.00027762,2]
[329670500,1718559044585,-4139.75197198,0.00027762,2]
[329670515,1718559044871,-74.88543506,0.00027762,2]
[329670517,1718559044894,-4832.22556236,0.00027762,2]
[329670518,1718559044916,-7707.39140595,0.00027762,2]
[329670521,1718559044946,-3358.09728546,0.00027762,2]
[329670522,1718559044967,-6517.10792,0.00027762,2]
[329670523,1718559045064,-4303.63783665,0.00027762,2]
[329670524,1718559045091,-1405.2,0.00027762,2]
[329670525,1718559045108,-894.38612488,0.00027762,2]
[329670526,1718559045127,-1098.34221808,0.00027762,2]
[329670527,1718559045164,-1370.91809665,0.00027762,2]
[329670528,1718559045420,-777.89710249,0.00027762,2]
[329670529,1718559045712,-405.5664405,0.00027761,2]
[329670530,1718559045772,-872.99523859,0.00027761,2]
[329670531,1718559045792,-4130.86407604,0.00027762,2]
[329670532,1718559045806,-1178.32502374,0.00027762,2]
[329670533,1718559045851,-17365.33401791,0.00027762,2]
[329670534,1718559045959,-3924.53627189,0.00027762,2]
[329670535,1718559045975,-719.07075033,0.00027762,2]
[329670537,1718559046133,-6218.39108876,0.00027762,2]
[329670538,1718559046155,-300.08603421,0.00027762,2]
[329670540,1718559046354,-1016.1,0.00027762,2]
[329670541,1718559046372,-6154.67876753,0.00027762,2]
[329670542,1718559046591,-69458.38900007,0.00027762,2]
[329670543,1718559046784,-685.50165271,0.00027762,2]
[329670545,1718559046800,-764.825,0.00027762,2]
[329670547,1718559046833,-2794.80934494,0.00027762,2]
[329670551,1718559046940,-26821.11545556,0.00027762,2]
[329670552,1718559047471,-3255.0,0.00027762,2]
[329670563,1718559047881,-257.2577,0.00027762,2]
[329670569,1718559048429,-128457.93218175,0.00027762,2]
[329670572,1718559048449,-2091.65,0.00027762,2]
[329670578,1718559048601,-2102.48363649,0.00027762,2]
[329670579,1718559048628,-2532.01049383,0.00027762,2]
[329670597,1718559048993,-1030.31,0.00027762,2]
[329670629,1718559049650,-269.0,0.00027762,5]
[329670630,1718559049665,-29608.72670689,0.00027762,2]
[329670631,1718559049684,-25896.87249875,0.00027762,2]
[329670633,1718559049708,-9411.26014652,0.00027762,2]
[329670634,1718559049722,-25574.52361261,0.00027762,2]
[329670642,1718559049894,-27918.37340922,0.00027762,2]
[329670653,1718559112440,3691.90635158,0.00017259,2]
[329670655,1718559199689,213.21,0.00026002,120]
[329670656,1718559241535,591.71137383,0.00025,30]
[329670658,1718559269412,2757.17104579,0.00025,30]
[329670661,1718559433314,-300.0,0.00019725,2]
[329670662,1718559441561,-226.81877563,0.000201,2]
[329670663,1718559468077,-152.84,0.00023502,2]
[329670664,1718559468105,-3753.44348,0.00023507,2]
[329670668,1718560154155,-150.17,0.00021824,2]
[329670669,1718560154200,-600.0,0.00021829,3]
[329670670,1718560154237,-153.67,0.00023626,2]
[329670671,1718560154270,-281.952569,0.00023631,2]
[329670672,1718560154354,-875.562551,0.00023631,2]
[329670673,1718560154386,-853.79308,0.00023631,2]
[329670674,1718560190442,-1117.986229,0.00023631,2]
[329670675,1718560190515,-875.562551,0.00023926,2]
[329670676,1718560190554,-1971.779309,0.00023926,2]
[329670677,1718560190630,-150.0,0.00023973,2]
[329670678,1718560190683,-382.95,0.00023993,2]
[329670679,1718560190747,-150.18,0.00023995,2]
[329670680,1718560190797,-499.99,0.00023995,2]
[329670681,1718560190839,-600.0,0.00024,4]
[329670682,1718560190885,-2059.47906552,0.000241,2]
[329670683,1718560190938,-875.562551,0.00024222,2]
[329670684,1718560191008,-1971.779309,0.00024222,2]
[329670685,1718560191048,-175.76,0.00024384,2]
[329670686,1718560191090,-151.28,0.00024384,2]
[329670687,1718560191143,-875.562551,0.00024517,2]
[329670688,1718560191194,-1971.779309,0.00024517,2]
[329670689,1718560191238,-875.562551,0.00024812,2]
[329670690,1718560191282,-1971.779309,0.00024812,2]
[329670691,1718560191319,-1278.56167909,0.00025,2]
[329670692,1718560191361,-1002.74,0.000251,2]
[329670693,1718560191403,-308.52,0.000251,2]
[329670694,1718560191457,-1775.17468811,0.0002559,2]
[329670695,1718560191708,-150.0,0.00025752,2]
[329670696,1718560191760,-293.9,0.00025803,2]
[329670697,1718560191806,-250.0,0.00025826,2]
[329670698,1718560191848,-6034.42,0.00025829,2]
[329670699,1718560191886,-250.0,0.00025839,2]
[329670700,1718560191924,-395.26,0.00025861,2]
[329670701,1718560191967,-173.33,0.00025878,2]
[329670702,1718560192015,-640.0,0.00025879,2]
[329670703,1718560192058,-809.16,0.00026017,2]
[329670704,1718560192096,-382.95,0.00026257,2]
[329670705,1718560192132,-2462.85144451,0.000265,7]
[329670706,1718560192174,-346.2,0.00026805,2]
[329670707,1718560192213,-700.0,0.000269,9]
[329670708,1718560192248,-753.0,0.00027,5]
[329670709,1718560192301,-1500.0,0.00027,9]
[329670710,1718560192360,-2314.0,0.00027,5]
[329670711,1718560192403,-2500.0,0.000271,2]
[329670712,1718560192443,-2200.0,0.000271,9]
[329670713,1718560192491,-3000.0,0.000272,9]
[329670714,1718560192531,-3800.0,0.000273,9]
[329670715,1718560192583,-13967.81592335,0.00027348,14]
[329670716,1718560192617,-150.0,0.00027397,2]
[329670717,1718560192655,-700.0,0.000274,10]
[329670718,1718560192700,-383.3117566,0.0002749,2]
[329670719,1718560192740,-413.35149323,0.00027492,2]
[329670720,1718560192777,-300.0,0.000275,2]
[329670721,1718560192813,-700.0,0.000275,10]
[329670722,1718560192852,-2100.0,0.00027513,2]
[329670723,1718560192890,-150.0,0.00027544,2]
[329670724,1718560192939,-500.0,0.00027545,2]
[329670725,1718560193013,-150.0,0.00027564,2]
[329670726,1718560193069,-2164.01134915,0.00027569,2]
[329670727,1718560193109,-2164.01134914,0.0002758,2]
[329670728,1718560193155,-2164.01134914,0.00027591,2]
[329670729,1718560193204,-700.0,0.000276,10]
[329670730,1718560193245,-2164.01134914,0.00027603,2]
[329670731,1718560193307,-150.0,0.00027611,2]
[329670732,1718560193361,-2164.01134914,0.00027614,2]
[329670733,1718560193418,-150.0,0.0002762,2]
[329670734,1718560193469,-199.81622812,0.00027621,2]
[329670735,1718560193527,-2164.01134914,0.00027625,2]
[329670736,1718560193564,-2164.01134914,0.00027636,2]
[329670737,1718560193605,-2164.01134914,0.00027648,2]
[329670738,1718560193685,-150.0,0.0002765,2]
[329670739,1718560193744,-369.14,0.00027652,10]
[329670740,1718560193777,-307.62,0.00027652,10]
[329670741,1718560193819,-256.35,0.00027652,10]
[329670742,1718560193860,-150.0,0.00027656,2]
[329670743,1718560193895,-2164.01134914,0.00027659,2]
[329670744,1718560193939,-2022.0521,0.0002766,2]
[329670745,1718560193982,-229.92507838,0.00027661,2]
[329670746,1718560194028,-5524.47946131,0.00027661,2]
[329670747,1718560194083,-272.7966,0.00027662,2]
[329670748,1718560194120,-22645.503,0.00027662,2]
[329670749,1718560194155,-676.15268185,0.00027662,2]
[329670750,1718560194193,-174.47135579,0.00027662,2]
[329670751,1718560194277,-297.17428481,0.00027662,2]
[329670752,1718560194334,-784.54659092,0.00027662,2]
[329670753,1718560194465,-715.60253023,0.00027662,2]
[329670754,1718560194512,-332.9388092,0.00027662,2]
[329670755,1718560194565,-5524.47946122,0.00027662,2]
[329670756,1718560194600,-171.98668742,0.00027662,2]
[329670757,1718560194664,-196.47451964,0.00027662,2]
[329670758,1718560194706,-229.92507838,0.00027662,2]
[329670759,1718560194743,-297.17428481,0.00027663,2]
[329670760,1718560194792,-5524.47946122,0.00027663,2]
[329670761,1718560194829,-297.17428481,0.00027663,2]
[329670762,1718560194864,-229.92507838,0.00027664,2]
[329670763,1718560194918,-5524.47946122,0.00027664,2]
[329670764,1718560194962,-297.17428481,0.00027664,2]
[329670765,1718560195005,-229.92507838,0.00027665,2]
[329670766,1718560195049,-297.17428481,0.00027665,2]
[329670767,1718560195094,-5524.47946122,0.00027665,2]
[329670768,1718560195128,-297.17428481,0.00027666,2]
[329670769,1718560195167,-5524.47946122,0.00027666,2]
[329670770,1718560195205,-229.92507838,0.00027666,2]
[329670771,1718560195258,-297.17428481,0.00027666,2]
[329670772,1718560195296,-5524.47946122,0.00027667,2]
[329670773,1718560195333,-297.17428481,0.00027667,2]
[329670774,1718560195385,-229.92507838,0.00027667,2]
[329670775,1718560195448,-297.17428481,0.00027668,2]
[329670776,1718560195495,-5524.47946122,0.00027668,2]
[329670777,1718560195536,-297.17428481,0.00027669,2]
[329670778,1718560195601,-229.92507838,0.00027669,2]
[329670779,1718560195662,-297.17428481,0.00027669,2]
[329670780,1718560195698,-297.17428481,0.0002767,2]
[329670781,1718560195736,-229.92507838,0.0002767,2]
[329670782,1718560195771,-2164.01134914,0.0002767,2]
[329670783,1718560195804,-2000.0,0.000277,2]
[329670784,1718560195841,-352.063249,0.000277,2]
[329670785,1718560195875,-291.0,0.000277,2]
[329670786,1718560195929,-160.0,0.000277,2]
[329670787,1718560196087,-700.0,0.000277,10]
[329670788,1718560196129,-150.0,0.000277,5]
[329670789,1718560196166,-186.63281502,0.00027752,2]
[329670790,1718560196198,-186.63281502,0.00027752,2]
[329670791,1718560196235,-1624.86434005,0.0002776,2]
[329670792,1718560196268,-560.09394104,0.0002776,2]
[329670793,1718560196302,-621.20003601,0.0002776,2]
[329670794,1718560196362,-252.42905979,0.0002776,2]
[329670795,1718560196400,-176.00763358,0.0002776,2]
[329670796,1718560196444,-601.02961931,0.0002776,2]
[329670797,1718560196482,-155.0,0.0002776,2]
[329670798,1718560196778,213.62,0.00027652,10]
[329670799,1718560196923,5524.47946122,0.00027669,2]
[329670800,1718560197074,5524.47946122,0.0002767,2]
[329670801,1718560197400,346.2,0.00026762,2]
[329670802,1718560201254,300.0,0.0002776,2]
[329670803,1718560201581,153.59,0.00027756,2]
[329670804,1718560202760,178.02,0.00027751,10]
[329670805,1718560203189,442.27731782,0.00027662,2]
[329670806,1718560207791,2057.34688934,0.0002776,2]
[329670807,1718560208084,442.27731781,0.00027666,2]
[329670808,1718560213124,442.27731781,0.0002767,2]
[329670809,1718560214831,890.13,0.00027751,10]
[329670810,1718560224357,150.0,0.000277,2]
[329670823,1718560233083,-386.55945984,0.00027761,2]
[329670824,1718560233270,-113.44054016,0.00027761,2]
[329670825,1718560233282,-150.0,0.00027761,2]
[329670826,1718560233296,-500.0,0.00027761,8]
[329670827,1718560233319,-391.59102054,0.00027761,8]
[329670828,1718560233330,-500.0,0.00027761,8]
[329670829,1718560233364,-500.0,0.00027761,8]
[329670830,1718560233377,-170.47702347,0.00027761,8]
[329670831,1718560233394,-500.0,0.00027761,8]
[329670832,1718560233408,-444.97992177,0.00027761,8]
[329670833,1718560233427,-55.02007823,0.00027761,8]
[329670834,1718560233450,-499.67875576,0.00027761,8]
[329670835,1718560233466,-500.0,0.00027761,8]
[329670836,1718560233477,-500.0,0.00027761,8]
[329670837,1718560233491,-500.0,0.00027761,8]
[329670838,1718560233505,-500.0,0.00027761,8]
[329670839,1718560233517,-500.0,0.00027761,8]
[329670840,1718560233539,-500.0,0.00027761,8]
[329670841,1718560233552,-349.20323543,0.00027761,2]
[329670842,1718560233564,-500.0,0.00027761,8]
[329670843,1718560233577,-558.88,0.00027761,8]
[329670844,1718560233593,-500.0,0.00027761,8]
[329670845,1718560233607,-195.39,0.00027761,8]
[329670846,1718560233618,-500.0,0.00027761,8]
[329670847,1718560233629,-518.8,0.00027761,8]
[329670848,1718560233645,-500.0,0.00027761,8]
[329670849,1718560233668,-500.0,0.00027761,8]
[329670850,1718560233679,-579.83,0.00027761,8]
[329670851,1718560233701,-500.0,0.00027761,8]
[329670852,1718560233719,-500.0,0.00027761,8]
[329670853,1718560233736,-500.0,0.00027761,8]
[329670854,1718560233750,-500.0,0.00027761,8]
[329670855,1718560233772,-284.49,0.00027761,8]
[329670856,1718560233784,-500.0,0.00027761,8]
[329670857,1718560233801,-500.0,0.00027761,8]
[329670858,1718560233823,-500.0,0.00027761,8]
[329670859,1718560233851,-637.63,0.00027761,8]
[329670860,1718560233875,-618.93,0.00027761,8]
[329670861,1718560233890,-500.0,0.00027761,8]
[329670862,1718560233903,-598.68,0.00027761,8]
[329670863,1718560233925,-500.0,0.00027761,8]
[329670864,1718560233946,-500.0,0.00027761,8]
[329670865,1718560233962,-500.0,0.00027761,8]
[329670866,1718560233983,-528.47,0.00027761,8]
[329670867,1718560234024,-500.0,0.00027761,8]
[329670868,1718560234052,-500.0,0.00027761,8]
[329670869,1718560234082,-500.0,0.00027761,8]
[329670870,1718560234093,-208.85,0.00027761,8]
[329670871,1718560234108,-500.0,0.00027761,8]
[329670872,1718560234121,-500.0,0.00027761,8]
[329670873,1718560234132,-500.0,0.00027761,8]
[329670874,1718560234152,-500.0,0.00027761,8]
[329670875,1718560234168,-409.82,0.00027761,8]
[329670876,1718560234181,-500.0,0.00027761,8]
[329670877,1718560234209,-500.0,0.00027761,8]
[329670878,1718560234222,-500.0,0.00027761,8]
[329670879,1718560234235,-500.0,0.00027761,8]
[329670880,1718560234257,-500.0,0.00027761,8]
[329670881,1718560234273,-500.0,0.00027761,8]
[329670882,1718560234307,-327.33,0.00027761,8]
[329670883,1718560234321,-500.0,0.00027761,8]
[329670884,1718560234340,-367.31718525,0.00027761,8]
[329670885,1718560234358,-528.0,0.00027761,8]
[329670886,1718560234383,-500.0,0.00027761,8]
[329670887,1718560234407,-500.0,0.00027761,2]
[329670888,1718560234440,-500.0,0.00027761,8]
[329670889,1718560234463,-500.0,0.00027761,8]
[329670890,1718560234488,-572.8,0.00027761,8]
[329670891,1718560234501,-556.12,0.00027761,8]
[329670892,1718560234521,-500.0,0.00027761,8]
[329670893,1718560234533,-500.0,0.00027761,8]
[329670894,1718560234546,-500.0,0.00027761,8]
[329670895,1718560234559,-500.0,0.00027761,8]
[329670896,1718560234571,-565.58,0.00027761,8]
[329670897,1718560234583,-500.0,0.00027761,8]
[329670898,1718560234597,-500.0,0.00027761,8]
[329670899,1718560234645,-288.31,0.00027761,8]
[329670900,1718560234672,-636.64,0.00027761,8]
[329670901,1718560234684,-500.0,0.00027761,8]
[329670902,1718560234697,-175.02,0.00027761,8]
[329670903,1718560234711,-500.0,0.00027761,8]
[329670904,1718560234723,-551.95,0.00027761,8]
[329670905,1718560234738,-500.0,0.00027761,8]
[329670906,1718560234751,-500.0,0.00027761,8]
[329670907,1718560234764,-526.53,0.00027761,8]
[329670908,1718560234781,-293.36746165,0.00027761,8]
[329670909,1718560234798,-206.63253835,0.00027761,8]
[329670910,1718560234811,-500.0,0.00027761,8]
[329670911,1718560234823,-448.92517147,0.00027761,8]
[329670912,1718560234836,-500.0,0.00027761,8]
[329670913,1718560234852,-500.0,0.00027761,8]
[329670914,1718560234868,-500.0,0.00027761,8]
[329670915,1718560234879,-507.88,0.00027761,8]
[329670916,1718560234900,-535.88,0.00027761,8]
[329670917,1718560234912,-500.0,0.00027761,8]
[329670918,1718560234925,-500.0,0.00027761,8]
[329670919,1718560234940,-500.0,0.00027761,8]
[329670920,1718560234956,-222.14726493,0.00027761,8]
[329670921,1718560234967,-500.0,0.00027761,8]
[329670922,1718560234990,-500.0,0.00027761,8]
[329670923,1718560235000,-500.0,0.00027761,8]
[329670924,1718560235012,-500.0,0.00027761,8]
[329670925,1718560235023,-166.34,0.00027761,8]
[329670926,1718560235035,-500.0,0.00027761,8]
[329670927,1718560235047,-500.0,0.00027761,8]
[329670928,1718560235057,-579.11,0.00027761,8]
[329670929,1718560235070,-500.0,0.00027761,8]
[329670930,1718560235084,-500.0,0.00027761,8]
[329670931,1718560235095,-500.0,0.00027761,8]
[329670932,1718560235107,-500.0,0.00027761,8]
[329670933,1718560235127,-189.54635829,0.00027761,8]
[329670934,1718560235171,153.0,0.00027756,2]
[329670935,1718560237084,-310.45364171,0.00027761,8]
[329670936,1718560237096,-500.0,0.00027761,8]
[329670937,1718560237130,-500.0,0.00027761,8]
[329670938,1718560237152,-500.0,0.00027761,8]
[329670939,1718560237170,-500.0,0.00027761,8]
[329670940,1718560237183,-500.0,0.00027761,8]
[329670941,1718560237196,-500.0,0.00027761,8]
[329670942,1718560237208,-500.0,0.00027761,8]
[329670943,1718560237224,-500.0,0.00027761,8]
[329670944,1718560237237,-500.0,0.00027761,8]
[329670945,1718560237254,-500.0,0.00027761,8]
[329670946,1718560237268,-271.39,0.00027761,8]
[329670947,1718560237285,-244.91905886,0.00027761,8]
[329670948,1718560237340,-500.0,0.00027761,8]
[329670949,1718560237395,-500.0,0.00027761,8]
[329670950,1718560237411,-55.91645852,0.00027761,8]
[329670951,1718560238139,-444.08354148,0.00027761,8]
[329670952,1718560238155,-500.0,0.00027761,8]
[329670953,1718560238167,-500.0,0.00027761,8]
[329670954,1718560238189,-251.09,0.00027761,8]
[329670955,1718560238205,-500.0,0.00027761,8]
[329670956,1718560238229,-519.43,0.00027761,8]
[329670958,1718560238242,-500.0,0.00027761,8]
[329670959,1718560238254,-500.0,0.00027761,8]
[329670960,1718560238266,-381.45,0.00027761,8]
[329670962,1718560238277,-521.4,0.00027761,8]
[329670963,1718560238289,-500.0,0.00027761,8]
[329670964,1718560238300,-500.0,0.00027761,8]
[329670965,1718560238311,-500.0,0.00027761,8]
[329670966,1718560238322,-500.0,0.00027761,8]
[329670967,1718560238333,-500.0,0.00027761,8]
[329670968,1718560238349,-500.0,0.00027761,8]
[329670970,1718560238361,-500.0,0.00027761,8]
[329670972,1718560238376,-589.23,0.00027761,8]
[329670973,1718560238392,-500.0,0.00027761,8]
[329670974,1718560238403,-500.0,0.00027761,8]
[329670975,1718560238415,-500.0,0.00027761,8]
[329670976,1718560238442,-500.0,0.00027761,8]
[329670977,1718560238456,-500.0,0.00027761,8]
[329670978,1718560238484,-500.0,0.00027761,8]
[329670979,1718560238500,-335.69,0.00027761,8]
[329670980,1718560238512,-500.0,0.00027761,8]
[329670981,1718560238528,-382.22,0.00027761,8]
[329670982,1718560238544,-500.0,0.00027761,8]
[329670983,1718560238559,-252.44,0.00027761,8]
[329670986,1718560238582,-500.0,0.00027761,8]
[329670988,1718560238598,-500.0,0.00027761,8]